Cogmind - Beta 11.1 @@@ ROGUE MODE // 2022.05.05 @ 22:38:34 Player: the cat Result: Destroyed by P1-3CE with P1-3CE's Gatling Flakker Performance ------------- Evolutions (1) 500 Regions Visited (6) 1200 Robots Destroyed (48) 240 Value Destroyed (1055) 1055 Prototype IDs (27) 540 Alien Tech Used (0) 0 Bonus (458) 458 TOTAL SCORE: 3993 Bonus ------- Pacifist 200 Aligned with FarCom 300 Friendly Fire -42 Cogmind --------- Core Integrity 0/400 Matter 203/300 Energy 22/100 System Corruption 3% Temperature Cool (0) Movement Core (50) Location -8/Mines Parts ------- > --- POWER (1) -------- (None) > --- PROPULSION (3) --- (None) > --- UTILITY (3) ------ (None) > --- WEAPON (2) ------- (None) > --- INVENTORY (5) ---- Advanced Myomer Leg Gravity Neutralizer Improved EM Shotgun Heavy Assault Rifle Gauss Rifle Peak State ------------ > --- POWER ------------ (None) > --- PROPULSION ------- Improved Treads Armored Treads Armored Treads > --- UTILITY ---------- Huge Storage Unit Medium Armor Plating > --- WEAPON ----------- Heavy Assault Rifle 8R-AWN's Boregun > --- INVENTORY -------- Nuclear Core Reinforced Deuterium Engine Light Fission Core Light Treads Light Treads Disposable Heat Sink Disposable Heat Sink High-capacity Matter Pod Gravity Neutralizer Improved EM Shotgun Improved EM Shotgun Field Laser Field Laser Field Laser Light EM Pulse Cannon Heavy Assault Rifle Heavy Assault Rifle Heavy Assault Rifle Grenade Launcher Rocket Launcher [Rating: 28] Favorites ----------- Power Heavy Ion Engine Engine Heavy Ion Engine Propulsion Light Treads Treads Light Treads Leg Aluminum Leg Wheel Wheel Utility Huge Storage Unit Device Disposable Heat Sink Storage Huge Storage Unit Processor Targeting Computer Protection Medium Armor Plating Weapon Heavy Assault Rifle Energy Gun Field Laser Energy Cannon Light EM Pulse Cannon Ballistic Gun Heavy Assault Rifle Build | -11 -10 -10 -9 -9 -9 -8 ------- Run | Scr Mat Min Mat Min Exi Min Slots Evolved 2 | . . . 2 . . . Power . | . . . . . . . Propulsion 1 | . . . 1 . . . Utility 1 | . . . 1 . . . Weapon . | . . . . . . . Parts Attached 45 | . 1 . 21 3 13 7 Power 4 | . . . 3 . 1 . Engine 4 | . . . 3 . 1 . Core . | . . . . . . . Reactor . | . . . . . . . Propulsion 13 | . . . 9 . 4 . Treads 11 | . . . 7 . 4 . Leg . | . . . . . . . Wheel 2 | . . . 2 . . . Hover . | . . . . . . . Flight . | . . . . . . . Utility 12 | . . . 5 2 3 2 Device 3 | . . . . 1 1 1 Storage 1 | . . . 1 . . . Processor 2 | . . . 1 . . 1 Hackware . | . . . . . . . Protection 6 | . . . 3 1 2 . Artifact . | . . . . . . . Weapon 16 | . 1 . 4 1 5 5 Energy Gun 7 | . . . 3 1 . 3 Energy Cannon 1 | . . . . . 1 . Ballistic Gun 8 | . 1 . 1 . 4 2 Ballistic Cannon . | . . . . . . . Launcher . | . . . . . . . Special Weapon . | . . . . . . . Impact Weapon . | . . . . . . . Slashing Weapon . | . . . . . . . Piercing Weapon . | . . . . . . . Special Melee Weapon . | . . . . . . . Unidentified Prototypes 4 | . . . 2 . 2 . Parts Lost 20 | . . . 1 3 11 5 Power 2 | . . . . . 2 . Propulsion 7 | . . . . . 4 3 Utility 6 | . . . 1 2 3 . Weapon 5 | . . . . 1 2 2 Highest Loss Streak 6 | . . . 1 2 6 5 To Critical Strikes 5 | . . . . . 5 . Average Slot Usage (%) 95 | . 85 85 96 99 91 77 Engine 10 | . 14 14 11 11 8 . Treads 29 | . . . 29 33 32 30 Leg 1 | . 28 28 . . . . Wheel 1 | . . . 2 . . . Device 4 | . . . . 10 7 11 Storage 11 | . 14 14 11 11 11 11 Processor 2 | . . . 6 . . 5 Protection 10 | . . . 13 11 9 . Energy Gun 8 | . . . 9 11 7 2 Ballistic Gun 13 | . 28 28 12 11 13 16 Naked Turns 1 | . . . . . . 1 Heaviest Build 108 | 10 11 11 108 102 102 87 Greatest Support 63 | 20 20 20 60 60 63 63 Greatest Overweight (x) 3 | . . . 3 1 1 1 Average Overweight (x) . | . . . 1 1 1 . Largest Inventory Capacity 25 | . 8 8 25 25 25 25 Average Capacity 23 | . 8 8 24 25 25 24 Most Carried 25 | . 8 8 25 25 25 20 Average Carried 21 | . 7 8 21 22 23 17 Final Capacity 25 | 8 8 8 25 25 25 5 Final Carried 25 | 6 8 8 25 23 20 5 Class Distribution -------------------- 97% | Mutant Dominant Class ---------------- Mutant | -10/Materials Mutant | -10/Mines Mutant | -9/Materials Mutant | -9/Mines Mutant | -9/Exiles Mutant | -8/Mines Resources | -11 -10 -10 -9 -9 -9 -8 ----------- Run | Scr Mat Min Mat Min Exi Min Matter Collected 1242 | 200 . . 417 264 337 24 Remotely . | . . . . . . . Salvage Created 1627 | . . . 1047 394 186 . Parts 111 | . . . 67 35 9 . Haulers Intercepted 5 | . . . 5 . . . Recyclers Shooed 1 | . . . 1 . . . Parts Field Recycled . | . . . . . . . Retrieved Matter . | . . . . . . . Parts Self-Destructed . | . . . . . . . Prevented . | . . . . . . . Kills | -11 -10 -10 -9 -9 -9 -8 ------- Run | Scr Mat Min Mat Min Exi Min Combat Hostiles Destroyed 37 | . . . 18 16 3 . Guns 36 | . . . 18 16 2 . Cannons 1 | . . . . . 1 . Classes Destroyed 9 | . . . 7 . 2 . Worker 3 | . . . 3 . . . Builder 2 | . . . 1 1 . . Hauler 5 | . . . 5 . . . Watcher 1 | . . . 1 . . . Swarmer 15 | . . . 4 11 . . Grunt 14 | . . . 9 5 . . Sentry 5 | . . . 5 . . . Hunter 1 | . . . . . 1 . Programmer 1 | . . . . . 1 . Best Kill Streak 6 | . . . 6 5 1 . Combat Bots Only 5 | . . . 4 5 1 . Max Kills in Single Turn 1 | . . . 1 1 1 . Gunslinging . | . . . . . . . Exploded . | . . . . . . . Melee . | . . . . . . . Uniques/NPCs Destroyed 1 | . . . . . 1 . 8R-AWN (-9/Exiles) Combat | -11 -10 -10 -9 -9 -9 -8 -------- Run | Scr Mat Min Mat Min Exi Min Damage Taken 3712 | . . . 778 734 1619 581 Core 420 | . . . 113 83 132 92 Absorbed by Shields . | . . . . . . . Core Remaining (%) 100 | 100 . 100 . . . . Volleys Fired 165 | . . . 71 39 53 2 Largest 2 | . . . 2 2 2 2 Hottest 126 | . . . 86 86 86 126 Shots Fired 329 | . . . 142 78 106 3 Gun 327 | . . . 142 78 104 3 Cannon 2 | . . . . . 2 . Launcher . | . . . . . . . Special . | . . . . . . . Kinetic 222 | . . . 80 39 103 . Thermal 105 | . . . 62 39 1 3 Explosive . | . . . . . . . Electromagnetic 2 | . . . . . 2 . Robot Hit Streak 19 | . . . 13 12 19 6 Robot Miss Streak 5 | . . . 3 5 2 1 Penetration Max . | . . . . . . . Secondary Targets 10 | . . . 3 7 . . Max Gunslinging Chain 1 | . . . 1 1 . . Shots Hit Robots 222 | . . . 98 38 84 2 Core Hits 78 | . . . 38 22 18 . Critical Kills . | . . . . . . . Critical Parts Destroyed 1 | . . . . . 1 . Critical Strikes 5 | . . . 2 2 1 . Burn 4 | . . . 2 2 . . Destroy 1 | . . . . . 1 . Melee Attacks . | . . . . . . . Impact . | . . . . . . . Slashing . | . . . . . . . Piercing . | . . . . . . . Sneak Attacks . | . . . . . . . Combat Hostiles . | . . . . . . . Follow-up Attacks . | . . . . . . . Damage Inflicted 3603 | . . . 1591 680 1298 34 Guns 3553 | . . . 1591 675 1253 34 Cannons 45 | . . . . . 45 . Explosions . | . . . . . . . Melee . | . . . . . . . Ramming 5 | . . . . 5 . . Kinetic 2318 | . . . 764 301 1253 . Thermal 1235 | . . . 827 374 . 34 Explosive . | . . . . . . . Electromagnetic 45 | . . . . . 45 . Impact . | . . . . . . . Slashing . | . . . . . . . Piercing . | . . . . . . . Highest Corruption 3 | . . . . . 3 3 Average Corruption 2 | . . . . . 2 3 Corruption Purged . | . . . . . . . Corruption Blocked . | . . . . . . . Effects 6 | . . . . . 5 1 Message Errors 1 | . . . . . 1 . Matter Fused 3 | . . . . . 3 . Heat Flow Errors 1 | . . . . . 1 . Alerts 1 | . . . . . . 1 Overload Shots . | . . . . . . . Overflow Damage . | . . . . . . . Projectiles . | . . . . . . . Explosions . | . . . . . . . Melee . | . . . . . . . Knockbacks . | . . . . . . . Impact . | . . . . . . . Kinetic . | . . . . . . . Secondary . | . . . . . . . Self-Inflicted Damage . | . . . . . . . Shots . | . . . . . . . Rammed 2 | . . . 1 1 . . Targets Rammed 2 | . . . 1 1 . . Kicked . | . . . . . . . Crushed . | . . . . . . . Highest Temperature 258 | . . . 258 255 157 42 Average Temperature 90 | . . . 84 103 77 22 Received Heat Transfer 531 | . . . 243 276 12 . Effects 1 | . . . 1 . . . Interference 1 | . . . 1 . . . Siege Activations . | . . . . . . . Robots Corrupted . | . . . . . . . Combat Hostiles . | . . . . . . . Parts Fried . | . . . . . . . Impact Corruptions . | . . . . . . . Robots Melted . | . . . . . . . Combat Hostiles . | . . . . . . . Parts Melted 3 | . . . 2 1 . . Heat Transferred 2941 | . . . 1961 962 . 18 Parts Sabotaged . | . . . . . . . Parts Stolen . | . . . . . . . Parts Stripped . | . . . . . . . Power Chain Reactions . | . . . . . . . Missiles Intercepted . | . . . . . . . Alert | -11 -10 -10 -9 -9 -9 -8 ------- Run | Scr Mat Min Mat Min Exi Min Peak Influence 373 | . . . 286 373 . . Initial 78 | . . . . 78 . . Average 130 | . . . 134 163 . . Maximum Alert Level 1 | . . . 1 1 . . Low Security (%) 82 | . 100 100 78 84 . 100 Level 1 17 | . . . 21 15 . . Level 2 . | . . . . . . . Level 3 . | . . . . . . . Level 4 . | . . . . . . . Level 5 . | . . . . . . . High Security . | . . . . . . . Max Security . | . . . . . . . Squads Dispatched 3 | . . . 3 . . . Investigation . | . . . . . . . Extermination . | . . . . . . . Reinforcement 3 | . . . 3 . . . Assault . | . . . . . . . Garrison . | . . . . . . . Intercept . | . . . . . . . Searches Triggered . | . . . . . . . Construction Impeded . | . . . . . . . Haulers Reinforced . | . . . . . . . Active Scanning Responses . | . . . . . . . Cargo Convoy Interrupts . | . . . . . . . Stealth | -11 -10 -10 -9 -9 -9 -8 --------- Run | Scr Mat Min Mat Min Exi Min Distress Signals 5 | . . . 4 1 . . Communications Jammed . | . . . . . . . Distress Signals . | . . . . . . . Times Spotted 81 | . . 16 39 18 7 1 Peak Tracking Total 19 | . . 19 5 5 4 1 Tactical Retreats 1 | . . . . 1 . . Traps | -11 -10 -10 -9 -9 -9 -8 ------- Run | Scr Mat Min Mat Min Exi Min Traps Triggered . | . . . . . . . Indirectly . | . . . . . . . Trap Hack Attempts . | . . . . . . . Triggered . | . . . . . . . Disarmed . | . . . . . . . Reprogrammed . | . . . . . . . Reused . | . . . . . . . Traps Extracted . | . . . . . . . Installed . | . . . . . . . Triggered . | . . . . . . . Exploded 2 | . . . . . 2 . Machines | -11 -10 -10 -9 -9 -9 -8 ---------- Run | Scr Mat Min Mat Min Exi Min Machines Disabled 3 | . . . 1 . 2 . Max in Single Turn 1 | . . . 1 . 1 . Machines Sabotaged . | . . . . . . . Garrisons Compromised . | . . . . . . . Overloaded Fab Kills . | . . . . . . . Hacking | -11 -10 -10 -9 -9 -9 -8 --------- Run | Scr Mat Min Mat Min Exi Min Machines Accessed 3 | . . . 1 . 2 . Terminals 1 | . . . 1 . . . Fabricators . | . . . . . . . Repair Stations . | . . . . . . . Recycling Units . | . . . . . . . Scanalyzers . | . . . . . . . Garrison Access . | . . . . . . . Total Hacks 9 | . . . 7 . 2 . Successful 4 | . . . 2 . 2 . Failed 5 | . . . 5 . . . Catastrophic 1 | . . . 1 . . . Database Lockouts . | . . . . . . . Manual 8 | . . . 7 . 1 . Terminals 7 | . . . 7 . . . Fabricators . | . . . . . . . Repair Stations . | . . . . . . . Recycling Units . | . . . . . . . Scanalyzers . | . . . . . . . Garrison Access . | . . . . . . . Terminal Hacks 3 | . . . 1 . 2 . Record 1 | . . . . . 1 . Branch Access Points 1 | . . . 1 . . . EX-Prototype ID Bank 1 | . . . . . 1 . Fabricator Hacks . | . . . . . . . Repair Station Hacks . | . . . . . . . Recycling Unit Hacks . | . . . . . . . Scanalyzer . | . . . . . . . Garrison Access Hacks . | . . . . . . . Unauthorized Hacks 1 | . . . 1 . . . Terminals 1 | . . . 1 . . . Botnet 1 | . . . 1 . . . Fabricators . | . . . . . . . Repair Stations . | . . . . . . . Recycling Units . | . . . . . . . Scanalyzers . | . . . . . . . Garrison Access . | . . . . . . . Data Cores Recovered . | . . . . . . . Used . | . . . . . . . Hacking Detections 1 | . . . 1 . . . Full Trace Events . | . . . . . . . Feedback Events . | . . . . . . . Feedback Blocked . | . . . . . . . Robot Schematics Acquired . | . . . . . . . Robots Built . | . . . . . . . Authchips . | . . . . . . . Time . | . . . . . . . Total Robot Build Rating . | . . . . . . . Part Schematics Acquired . | . . . . . . . Parts Built . | . . . . . . . Authchips . | . . . . . . . Time . | . . . . . . . Total Part Build Rating . | . . . . . . . Parts Repaired . | . . . . . . . Time . | . . . . . . . Parts Recycled . | . . . . . . . Recycled Matter . | . . . . . . . Retrieved Matter . | . . . . . . . Retrieved Components . | . . . . . . . Parts Scanalyzed . | . . . . . . . Part Schematics Acquired . | . . . . . . . Parts Damaged . | . . . . . . . Bothacking | -11 -10 -10 -9 -9 -9 -8 ------------ Run | Scr Mat Min Mat Min Exi Min Used RIF Installer . | . . . . . . . Robots Hacked . | . . . . . . . Non-combat . | . . . . . . . Combat . | . . . . . . . Robot Hacks Applied . | . . . . . . . Relay Couplers Released . | . . . . . . . Fabnet Peak Effective % . | . . . . . . . Robots Rewired . | . . . . . . . Allies Hacked . | . . . . . . . Hacks Repelled . | . . . . . . . Allies | -11 -10 -10 -9 -9 -9 -8 -------- Run | Scr Mat Min Mat Min Exi Min Total Allies . | . . . . . . . Largest Group . | . . . . . . . Highest-Rated Group . | . . . . . . . Highest-Rated Ally . | . . . . . . . Total Orders . | . . . . . . . Ally Attacks . | . . . . . . . Total Damage . | . . . . . . . Kills . | . . . . . . . Allies Corrupted . | . . . . . . . Allies Melted . | . . . . . . . Intel | -11 -10 -10 -9 -9 -9 -8 ------- Run | Scr Mat Min Mat Min Exi Min Robot Analysis Total . | . . . . . . . Derelict Logs Recovered . | . . . . . . . Drone Launches . | . . . . . . . Drone Recoveries . | . . . . . . . Exploration | -11 -10 -10 -9 -9 -9 -8 ------------- Run | Scr Mat Min Mat Min Exi Min Turns Passed 4163 | . 109 128 1632 977 1274 43 Spaces Moved 1579 | 1 88 107 602 349 418 14 Core 3 | . . . . . . 3 Treads 1249 | . . . 471 349 418 11 Legs 224 | 1 88 107 28 . . . Wheels 103 | . . . 103 . . . Hover . | . . . . . . . Flight . | . . . . . . . Fastest Speed 50 | 120 120 120 120 243 243 50 Average Speed 218 | 120 120 120 220 243 243 204 Slowest Speed 320 | 120 120 120 320 243 246 246 Overloaded Moves . | . . . . . . . Propulsion Burnouts . | . . . . . . . Robots Hopped . | . . . . . . . Cave-ins Triggered . | . . . . . . . Exploration Rate (%) 36 | 1 19 26 58 67 77 7 Regions Visited 6 Branch Regions 4 Pre-discovered Areas 1 | . . . . . 1 . Known Exits Taken 1 | . . . 1 . . . Unknown Exits Taken 5 | 1 1 1 . 1 1 . Scrap Searched 3 | . . . . 2 . 1 Spaces Dug . | . . . . . . . Terrain Destroyed . | . . . . . . . Melee . | . . . . . . . Projectile . | . . . . . . . AOE . | . . . . . . . Terrain Rammed . | . . . . . . . Walls Destroyed . | . . . . . . . Machines Disabled . | . . . . . . . Actions | -11 -10 -10 -9 -9 -9 -8 --------- Run | Scr Mat Min Mat Min Exi Min Total 1967 | . 92 106 775 399 572 23 Wait 100 | . . . 19 7 74 . Move 1573 | . 87 106 601 348 417 14 Hop . | . . . . . . . Pick Up 46 | . 3 . 35 1 7 . Fast Attach 13 | . . . 10 . 2 1 Attach 23 | . 1 . 8 3 8 3 Detach 5 | . . . 2 . 3 . Swap 9 | . . . 3 . 3 3 Drop 31 | . 1 . 25 . 5 . Fire 165 | . . . 71 39 53 2 Melee . | . . . . . . . Ram 1 | . . . 1 . . . Kick . | . . . . . . . Crush 1 | . . . . 1 . . Escape Stasis . | . . . . . . . Rewire . | . . . . . . . Trap . | . . . . . . . Miscellaneous . | . . . . . . . Route ------- -11/Scrapyard -10/Materials -10/Mines -9/Materials (discovered 2 exits: [*Mat] / *Min) -9/Mines (discovered 2 exits: [*Mat] / *Exi) -9/Exiles -8/Mines History --------- Turn | Location | Event 1 | -11/Scrapyard | Discovered new exit (range 0) 1 | -11/Scrapyard | Entered Materials 56 | -10/Materials | Discovered new exit (range 13) 110 | -10/Materials | Entered Mines 221 | -10/Mines | Discovered new exit (range 11) 231 | -10/Mines | Assembled infested the area 238 | -10/Mines | Entered Materials 238 | -9/Materials | Evolved 2 slots: Propulsion x1, Utility x1 307 | -9/Materials | Build established: Mutant 695 | -9/Materials | Discovered new exit (range 3) 856 | -9/Materials | Identified exit to Mines 1870 | -9/Materials | Entered Mines 1900 | -9/Mines | Met a Derelict bent on vengeance 2749 | -9/Mines | Discovered new exit (range 9) 2834 | -9/Mines | Deemed a non-threat by the Exiles lab entrance 2837 | -9/Mines | Discovered new exit (range 5) 2847 | -9/Mines | Entered Exiles 2932 | -9/Exiles | Met 8R-AWN 2987 | -9/Exiles | Met EX-HEX 3126 | -9/Exiles | Met EX-DEC 3173 | -9/Exiles | Visited The Gauntlet 3294 | -9/Exiles | Learned location of Zion (-6) 3355 | -9/Exiles | Met EX-BIN 3384 | -9/Exiles | Aligned with FarCom system 3386 | -9/Exiles | Given EX-Vault access code 3444 | -9/Exiles | Opened EX-Vault 3537 | -9/Exiles | Warned to stay clear of 0b10 Research branches 3543 | -9/Exiles | Exiles lab attacked by MAIN.C 3701 | -9/Exiles | Attacked by the Exiles 3704 | -9/Exiles | Core integrity fell below 50% 3758 | -9/Exiles | Lost 6 parts (1p3n1u1w) 3845 | -9/Exiles | Destroyed 8R-AWN 3858 | -9/Exiles | Lost 3 parts (1p1n1u) 3861 | -9/Exiles | Found Prototype Ballistic Gun 3861 | -9/Exiles | Identified 8R-AWN's Boregun 3947 | -9/Exiles | Discovered new exit (range 10) 4105 | -9/Exiles | Core integrity fell below 20% 4121 | -9/Exiles | Entered Mines 4153 | -8/Mines | P1-3CE came to Exiles' defense 4163 | -8/Mines | Released all parts (4) 4164 | -8/Mines | Destroyed by P1-3CE with P1-3CE's Gatling Flakker Last Messages --------------- 04109_ Hvy. Assault Rifle destroyed. A strange signal echoes through the mines. LOCATION=UNKNOWN GOAL=ESCAPE 04140_ System corrupted: IFF burst signal emitted. 04140_ Searching scrap... 04140_ Found Adv. Visual Processing Unit. 04140_ Found 24 Matter. 04141_ Acquired 24 matter. 04145_ Acquired Adv. Visual Processing Unit. 04153_ P1-3CE: "I came as fast as I could... Wait, it was you!" 04158_ Arm. Treads destroyed. 04158_ Field Laser destroyed. 04162_ Arm. Treads destroyed. 04162_ Field Laser destroyed. 04162_ Imp. Treads destroyed. 04163_ Released Huge Storage Unit. 04163_ Released Disposable Heat Sink. 04163_ Released Field Laser. 04163_ Released Adv. Visual Processing Unit. Map ----- +----------------------------------------------------+ | ?????????????????????????????????? | | ?????????????????????????????????? | | ?????????????????????????????????? | | ?????????????????????????????????? | | ?????????????????????????????????? | | ?????????????????????????????????? | | ?????????????????????????????????? | | ?????????????????????????????????? | | ?????????????????????????????????? | | ?????????????????????????????????? | | ?????????????????????????????????? | | ?????????????????????????????????? | | ?????????????????????????????????? | | ?????????????????????????????????? | | ?????????????????????????????????? | | ?????????????????????????????????? | | ?????????????????????????????????? | | ?????????????????????????????????? | | ?????????????????????????????????? | | ?????????????????????????????????? | | ?????????????????????????????????? | | ????????????????? ?????#####?????? | | ????????????????? ?????# ??????? | | ???????????????? ####?# ??????? | | ???????????????# #?# #??????? | | ??????????????## ?#]@#??????? | | ?????????????## ??#*!#??????? | | ?????????????# """ ??#[=#??????? | | ?????????????# """ #??;![#??????? | | ?????????????# """ ####=]#??????? | | ?????????????# ###[[]#?????? | | ??????????????# ##!!##?????? | | ???????????????# ## #??????? | | ???????????????## ##M #??????? | | ????????????????## #??????? | | ?????????????????# #####??????? | | ?????????????????## #??????????? | | ??????????????????# ##??????????? | | ??????????????????# #???????????? | | ??????????????????# #???????????? | | ??????????????????# #???????????? | | ??????????????????# ???????????? | | ??????????????????# #???????????? | | ??????????????????# #???????????? | | ?????????????????? #???????????? | | ?????????????????? ???????????? | | ?????????????????? ???????????? | | ?????????????????? ???????????? | | ????????????????? ???????????? | | ?????????????????????????????????? | +----------------------------------------------------+ Best States ------------- Heat Dissipation 28 Coolant Potential 50 Energy Generation 14 Energy Capacity 280 Matter Stores 300 Matter Capacity 300 Sight Range 20 Terrain Scan Density 10 Armor Coverage 450 Evasion (%) 55 Targeting Accuracy 5 Recoil Reduction 3 Item Schematics ----------------- None Robot Schematics ------------------ None Fabricated ------------ Nothing Alien Tech Used ----------------- None Achievements -------------- None Challenges ------------ None Game ------ Seed DeliveryKineticSegregator Manual? 0 Play Time 00:23:16 Cumulative 254.6 hours Start 2022.05.05 @ 22:17:07 End 2022.05.05 @ 22:38:34 Sessions 1 Manual Loads 0 Difficulty Rogue Special Mode None Game No. 80 Rogue 63 Adventurer 17 Explorer 0 Win Type - Total 14 Types 8/0/5/1/0/0/0/0/0 Lore% 77 Gallery% 81 Achievement% 70 Wizard Run 0 Options --------- ASCII 0 Keyboard 0 Movement Arrows Keybinds 0 Fullscreen 1 Font 28/Dina Map View 72x54 Tactical HUD 1 Map Filters NONE Filters NONE Steam 1 RUN: dd59ed13-5ca2-4c4e-8418-d6cc24b4569a